[Event "15th Chennai GM Open 2025"]
[Site "Chennai"]
[Date "2025.01.06"]
[Round "7.8"]
[White "Madhesh Kumar S"]
[Black "Mohamed Anees M"]
[Result "0-1"]
[ECO "B33"]
[WhiteElo "2006"]
[BlackElo "2334"]
[Annotator "TA"]
[PlyCount "138"]
[EventDate "2025.01.02"]
[EventType "swiss"]
[EventCountry "IND"]
[SourceTitle "playchess.com"]
[Source "ChessBase"]
[SourceQuality "1"]
[TimeControl "5400+30"]

{[%evp 64,138,0,-56,-28,-25,-35,-20,-3,-50,0,-3,0,0,0,0,0,0,0,-413,-413,-1913,-1757,-1472,-1341,-606,-1369,-1369,0,-919,-1271,-1410,-1341,-919,-906,-694,-534,-2278,-480,-1004,-939,-837,-829,-789,-566,-559,-559,-559,-497,-774,-767,-767,-767,-745,-659,-29965,-29966,-29973,-29973,-29972,-8504,-29972,-29974,-29964,-5571,-29971,-29973,-29973,-29973,-29974,-29973,-29974,-29973,-29974,-29975,-29978,-29979]} 1. e4 {[%emt 0:00:03]} c5 {[%emt 0:00:30]} 2. Nf3 {[%emt 0:00:05]} Nc6 {[%emt 0:00:05]} 3. d4 {[%emt 0:00:07]} cxd4 {[%emt 0:00:04]} 4. Nxd4 {[%emt 0:00:06]} Qb6 {[%emt 0:00:06]} 5. Nb3 {[%emt 0:00:08]} Nf6 {[%emt 0:00:05]} 6. Nc3 {[%emt 0:00:06]} e6 {[%emt 0:00:05]} 7. Bd3 {[%emt 0:00:48]} a6 {[%emt 0:00:49]} 8. Be3 {[%emt 0:01:19]} Qc7 {[%emt 0:00:07]} 9. f4 {[%emt 0:00:52]} d6 {[%emt 0:00:05]} 10. Qe2 {[%emt 0:01:15]} b5 {[%emt 0:04:21]} 11. O-O {[%emt 0:00:24]} Be7 {[%emt 0:01:29]} 12. Nb1 {[%emt 0:13:25]} Bb7 {[%emt 0:04:26]} 13. N1d2 {[%emt 0:00:05]} O-O {[%emt 0:02:52]} 14. a4 {[%emt 0:14:11]} Nb4 {[%emt 0:07:37]} 15. Rfc1 {[%emt 0:18:35]} Rfc8 {[%emt 0:08:17]} 16. axb5 {[%emt 0:11:43]} axb5 {[%emt 0:00:41]} 17. Rxa8 {[%emt 0:04:42]} Bxa8 {[%emt 0:02:14]} 18. Bxb5 {[%emt 0:02:33]} Nxe4 {[%emt 0:04:45]} 19. Nxe4 {[%emt 0:00:16]} Bxe4 {[%emt 0:00:07]} 20. c3 {[%emt 0:02:55]} Nd5 {[%emt 0:01:19]} 21. Bd2 {[%emt 0:02:22]} Nf6 {[%emt 0:01:11]} 22. Ra1 {[%emt 0:02:29]} Rb8 {[%emt 0:08:10]} 23. Be3 {[%emt 0:09:46]} Bc6 {[%emt 0:05:18]} 24. Bxc6 {[%emt 0:03:51]} Qxc6 {[%emt 0:00:13]} 25. Nd4 {[%emt 0:00:25]} Qb7 {[%emt 0:04:12]} 26. b4 {[%emt 0:05:33]} Nd5 {[%emt 0:00:42]} 27. Qd2 {[%emt 0:00:12]} Bf6 {[%emt 0:00:27]} 28. Ne2 {[%emt 0:01:02]} Qc6 {[%emt 0:07:37]} 29. Bd4 {[%emt 0:00:24]} e5 {[%emt 0:00:40]} 30. fxe5 {[%emt 0:00:12]} dxe5 {[%emt 0:00:01]} 31. Bc5 {[%emt 0:00:44]} Rd8 {[%emt 0:02:09]} 32. Qc2 {[%emt 0:00:12] [#]} Nc7 $2 {[%emt 0:03:41]} (32... Be7 $1 $17 33. Ra5 (33. Bxe7 Ne3 $17) 33... Bxc5+ 34. Rxc5 Qf6) 33. Ng3 {[%emt 0:00:52]} ({White should try} 33. Rd1 $11) 33... Ne6 $15 {[%emt 0:01:18]} 34. Qe4 {[%emt 0:01:08]} Qc8 {[%emt 0:01:29]} 35. Qc4 {[%emt 0:01:45]} Be7 {[%emt 0:04:35]} 36. Ne4 {[%emt 0:00:13]} h6 {[%emt 0:01:59]} (36... Qc7 $15) 37. h3 $11 {[%emt 0:01:47]} Bg5 {[%emt 0:09:18]} 38. Qe2 {[%emt 0:00:56]} Nf4 {[%emt 0:01:02]} 39. Qf3 {[%emt 0:00:14]} Qf5 {[%emt 0:00:41]} 40. Nd6 {[%emt 0:01:17]} Qc2 {[%emt 0:04:27]} 41. Ra8 $2 {[%emt 0:00:39][%mdl 8192]} (41. Kh2 $1 $11) 41... Ne2+ $19 {[%emt 0:02:00]} 42. Kf1 {[%emt 0:00:54] [#]} (42. Kh1 $142 Qc1+ (42... Nxc3 43. Rxd8+ Bxd8 44. Qxf7+ Kh7 45. Kh2 $14) 43. Kh2 Qf4+ (43... Nxc3 $2 44. Be3 $18) (43... Bf4+ 44. g3 $16) 44. Kh1 Ng3+ (44... Qc1+ $2 45. Kh2 $19) 45. Kh2 (45. Kg1 $2 Qc1+ 46. Kf2 Nh1+ 47. Ke2 Qd2+ 48. Kf1 Ng3+ 49. Qxg3 Rxa8 $19) 45... Ne4+ 46. Qxf4 Bxf4+ 47. Kg1 Rxa8 48. Nxe4) 42... Ng3+ $1 $19 {[%emt 0:01:07]} (42... Nxc3 43. Rxd8+ Bxd8 44. Qxf7+ Kh7 45. Qf5+ Qxf5+ 46. Nxf5 $11) 43. Kg1 {[%emt 0:00:14]} Qc1+ {[%emt 0:01:41]} 44. Kf2 {[%emt 0:00:40]} Nh1+ {[%emt 0:00:31]} ({Not} 44... Qf1+ 45. Kxg3 Qxf3+ 46. Kxf3 $11) 45. Ke2 {[%emt 0:00:24]} Qd2+ {[%emt 0:00:02]} 46. Kf1 {[%emt 0:00:06]} Ng3+ $1 {[%emt 0:00:04]} 47. Qxg3 {[%emt 0:01:06]} Rxa8 {[%emt 0:00:04]} 48. Qe1 {[%emt 0:00:35]} Qd3+ {[%emt 0:02:12]} 49. Kg1 {[%emt 0:00:33]} Bd2 {[%emt 0:01:00]} 50. Qxe5 {[%emt 0:00:41]} Bxc3 {[%emt 0:00:26]} (50... g5 $142 {( -> ...Ra1+)} 51. Ba7 Bxc3 (51... Rxa7 52. Qe8+ Kg7 53. Qe5+ f6 54. Ne8+ Kh8 55. Qxf6+ Kh7 56. Kh2 $19) (51... Bf4 $2 52. Qe4 $19)) 51. Qf4 {[%emt 0:00:22]} (51. Qe4 $142 Ra1+ 52. Kh2 Qxe4 53. Nxe4) 51... Ra1+ $19 {[%emt 0:01:19]} 52. Kh2 {[%emt 0:00:09]} Rf1 {[%emt 0:00:04]} 53. Qe4 {[%emt 0:00:14]} Qxe4 {[%emt 0:00:40]} 54. Nxe4 {[%emt 0:00:09]} Bxb4 {[%emt 0:00:10]} 55. Bxb4 {[%emt 0:00:56]} Rf4 {[%emt 0:00:06]} 56. Nf6+ {[%emt 0:00:33]} (56. Nc3 $142 Rxb4 57. Nd5) 56... Rxf6 $19 {[%emt 0:00:05]} 57. Kg3 {[%emt 0:00:09]} Rb6 {[%emt 0:00:36]} 58. Bc5 {[%emt 0:00:13]} Rb3+ {[%emt 0:00:06]} 59. Kf4 {[%emt 0:00:07]} g5+ {[%emt 0:00:48]} 60. Kg4 {[%emt 0:00:11]} Kh7 {[%emt 0:01:05]} 61. h4 {[%emt 0:00:27]} Rc3 {[%emt 0:00:09]} (61... f5+ $142 62. Kh5 Rg3 63. hxg5 hxg5 (63... Rxg2 $2 64. gxh6 f4 65. Kh4 $19) (63... Rxg5+ $2 64. Kh4 $19) 64. Be7 Rxg2 65. Bxg5 Rh2+ 66. Bh4 f4 67. Kg4 f3 68. Bg3 f2 69. Bxh2 f1=Q (69... f1=B 70. Kh5 $11) 70. Bf4 Kg6 71. Be3 Qc4+ 72. Kf3 Kf5 73. Bh6 Qc3+ 74. Be3 Qd3 75. Kf2 Ke4 76. Bb6 Qf3+ (76... Qc2+ 77. Kg3 Qb3+ 78. Kg4 Qxb6 79. Kg5 Qe6 80. Kh4 Qg6 81. Kh3 Kf3 82. Kh4 Qh6#) 77. Kg1 Qg3+ 78. Kf1 Kf3 79. Bd4 Qg2+ 80. Ke1 Qe2#) 62. Bf2 {[%emt 0:00:05]} Rc2 {[%emt 0:00:15]} 63. Kf3 {[%emt 0:00:08]} Kg6 {[%emt 0:00:07]} (63... Rxf2+ $142 64. Kxf2 gxh4 65. Kf3 h5 66. Kf4 Kg6 67. Ke4 Kg5 68. Ke5 f5 (68... Kg4 $2 69. Kf6 $19) 69. Kd5 f4 70. Ke4 Kg4 71. Kd4 h3 72. gxh3+ Kxh3 73. Ke5 f3 74. Kf6 f2 75. Ke6 h4 (75... f1=B {leads to mate.} 76. Ke5 h4 77. Kf4 Kg2 78. Kf5 h3 79. Kg5 h2 80. Kf6 h1=Q 81. Ke6 Bc4+ 82. Ke7 Qd1 83. Kf6 Qd6+ 84. Kg7 Qe7+ 85. Kh6 Bd3 86. Kh5 Qf6 87. Kg4 Be2#) (75... f1=Q 76. Kd5 Qb5+ 77. Kd4 h4 78. Ke4 Kg3 79. Kd4 h3 80. Kc3 h2 81. Kd4 h1=Q 82. Ke3 Qe1+ 83. Kd4 Qee5#) 76. Ke7 f1=Q (76... f1=B 77. Kf6 Kg4 78. Kf7 h3 79. Kf6 h2 80. Ke7 h1=Q 81. Kd6 Qh2+ 82. Ke6 Qh6+ 83. Ke5 Qc6 84. Kd4 Qc7 85. Kd5 Kf5 86. Kd4 Qe5#) 77. Ke6 Kg4 (77... Kg3 78. Ke5 h3 79. Ke6 h2 80. Ke5 h1=Q 81. Kd4 Qc6 82. Ke3 Qff3+ 83. Kd4 Qfe4#) 78. Ke7 h3 79. Ke6 Qc4+ 80. Kf6 h2 81. Ke7 h1=Q (81... h1=R 82. Kd7 Rh6 83. Ke8 Rh7 84. Kf8 Qf7#) 82. Kf6 Qb7 83. Kg6 Qe6#) 64. hxg5 {[%emt 0:00:04]} hxg5 {[%emt 0:00:04]} 65. g4 {[%emt 0:00:16]} Kf6 {[%emt 0:00:40]} 66. Bd4+ {[%emt 0:01:26]} Ke6 {[%emt 0:00:05]} 67. Ba1 {[%emt 0:00:21]} Ra2 {[%emt 0:00:13]} 68. Bd4 {[%emt 0:00:24]} Ra3+ {[%emt 0:00:09]} 69. Be3 {[%emt 0:01:00]} Rxe3+ {[%emt 0:00:20]} 0-1

[Event "15th Chennai GM Open 2025"]
[Site "Chennai"]
[Date "2025.01.06"]
[Round "7.10"]
[White "Madhvendra Pratap Sharma"]
[Black "Jai Sankar Subramanian"]
[Result "1-0"]
[ECO "B31"]
[WhiteElo "2281"]
[BlackElo "2113"]
[Annotator "TA"]
[PlyCount "131"]
[EventDate "2025.01.02"]
[EventType "swiss"]
[EventCountry "IND"]
[SourceTitle "playchess.com"]
[Source "ChessBase"]
[SourceQuality "1"]
[TimeControl "5400+30"]

{[%evp 26,131,9,-11,-6,-5,-4,-15,48,36,42,33,33,38,55,29,16,0,4,0,13,0,30,30,39,47,68,61,107,114,129,126,183,166,155,189,243,242,343,321,342,336,369,362,364,370,370,370,370,368,360,314,493,493,480,337,335,319,335,322,320,313,426,426,421,398,382,375,529,426,426,425,522,514,506,506,492,477,570,554,554,544,566,561,676,628,677,652,1156,1168,868,970,1214,1073,1458,1492,2191,4284,5242,5234,29974,29972,29973,29973,29988,29989,29990,29991]} 1. e4 {[%emt 0:00:03]} c5 {[%emt 0:00:04]} 2. Nf3 {[%emt 0:00:10]} Nc6 {[%emt 0:00:02]} 3. Bb5 {[%emt 0:00:23]} g6 {[%emt 0:00:04]} 4. O-O {[%emt 0:00:49]} Bg7 {[%emt 0:00:02]} 5. Re1 {[%emt 0:01:43]} Nf6 {[%emt 0:00:10]} 6. c3 {[%emt 0:02:19]} O-O {[%emt 0:00:08]} 7. d4 {[%emt 0:00:36]} d5 {[%emt 0:00:08] is more profitable than 7...cxd4 at the moment.} 8. e5 {[%emt 0:09:09]} Ne4 {[%emt 0:00:04]} 9. h3 {[%emt 0:13:22]} Qb6 {[%emt 0:12:48] B31: Sicilian: 2...Nc6 3 Bb5 g6.} 10. Bxc6 {[%emt 0:11:29]} bxc6 {[%emt 0:01:34]} 11. Nbd2 {[%emt 0:04:34]} Bf5 {[%emt 0:08:11]} 12. Nb3 {[%emt 0:19:12]} c4 {[%emt 0:12:13]} 13. Nbd2 {[%emt 0:00:09]} f6 $146 {[%emt 0:00:02]} ({Predecessor:} 13... Rad8 14. g4 Be6 15. Nxe4 dxe4 16. Ng5 Bd5 17. Qc2 f6 18. exf6 exf6 19. Nxe4 f5 {0-1 Becker,W (2305)-Apel,S (2310) BL2-Nord 9899 1998 (5.3)}) 14. Nxe4 {[%emt 0:02:18]} Bxe4 {[%emt 0:04:10]} 15. Nd2 {[%emt 0:05:29]} Bf5 {[%emt 0:06:07]} 16. e6 {[%emt 0:01:23]} Rfd8 {[%emt 0:03:30]} ({Black should play} 16... Qa6 $11) 17. g4 $1 $14 {[%emt 0:02:03]} Bd3 {[%emt 0:00:03]} 18. Nb3 $1 {[%emt 0:00:41]} cxb3 {[%emt 0:07:53]} 19. Qxd3 {[%emt 0:00:02]} a5 {[%emt 0:00:01]} 20. axb3 {[%emt 0:05:03]} Qxb3 {[%emt 0:00:11]} 21. Re2 {[%emt 0:04:40]} Qb5 {[%emt 0:01:28]} 22. Qc2 {[%emt 0:03:41]} a4 {[%emt 0:01:00]} 23. Bf4 {[%emt 0:00:46]} Qb3 {[%emt 0:00:25]} 24. Ra3 {[%emt 0:01:16]} Qxc2 {[%emt 0:06:41]} 25. Rxc2 {[%emt 0:00:03]} Ra6 {[%emt 0:00:01]} 26. Rc1 {[%emt 0:01:33]} Rc8 {[%emt 0:02:24] [#]} (26... g5 $1 $14 {was preferrable.} 27. Be3 Rb8) 27. Be3 $1 $16 {[%emt 0:05:33]} Rb8 {[%emt 0:10:42]} 28. Rca1 {[%emt 0:00:27]} h5 {[%emt 0:02:15]} (28... Rxb2 $16 29. Rxa4 Rxa4 30. Rxa4 Rb8) 29. b3 {[%emt 0:01:34]} hxg4 {[%emt 0:02:57]} 30. hxg4 {[%emt 0:00:05]} ({Stronger than} 30. bxa4 gxh3 31. Kh2 Kh7 $15) 30... f5 {[%emt 0:00:16]} (30... Kh7 {is a better defense.} 31. Rxa4 Rxa4 32. bxa4 g5) 31. Rxa4 $18 {[%emt 0:01:21]} ({Don't play} 31. bxa4 $6 fxg4 32. Kg2 Ra5 $16) 31... Rab6 {[%emt 0:01:11]} (31... Rxa4 $142 32. bxa4 (32. Rxa4 fxg4 33. b4 Bf6 $16) 32... Ra8) 32. b4 {[%emt 0:00:13]} fxg4 {[%emt 0:00:17]} 33. Bf4 {[%emt 0:00:31]} Rf8 {[%emt 0:00:54]} 34. Ra8 {[%emt 0:00:03]} Bf6 {[%emt 0:00:19]} 35. Rxf8+ {[%emt 0:00:39]} Kxf8 {[%emt 0:00:01]} 36. Ra7 {[%emt 0:00:43]} Kg7 {[%emt 0:03:15]} 37. Bc7 {[%emt 0:00:21]} Rb5 {[%emt 0:00:01]} 38. Kg2 {[%emt 0:00:52]} Bg5 {[%emt 0:03:08]} (38... Kh6 $142 39. Bd8 Kg5 40. Bxe7 Bxe7) 39. Be5+ $18 {[%emt 0:00:09]} Kh6 {[%emt 0:00:00]} 40. Kg3 {[%emt 0:00:39]} Kh5 {[%emt 0:00:42]} 41. Bf4 {[%emt 0:01:26]} Bh4+ {[%emt 0:00:01]} 42. Kg2 {[%emt 0:00:00]} Bf6 {[%emt 0:00:01]} 43. Ra6 {[%emt 0:00:29]} g5 {[%emt 0:00:01]} 44. Bg3 {[%emt 0:00:57]} Kg6 {[%emt 0:02:34]} 45. Rxc6 {[%emt 0:00:02]} Kf5 {[%emt 0:00:01]} 46. Rc5 {[%emt 0:00:20]} Rb6 {[%emt 0:00:51]} (46... Rb7 $142 47. Rxd5+ Kxe6) 47. Rxd5+ {[%emt 0:00:12]} Kxe6 {[%emt 0:00:01]} 48. Rc5 {[%emt 0:00:01]} Ra6 {[%emt 0:01:31]} 49. Ra5 {[%emt 0:00:48]} Rb6 {[%emt 0:00:19]} 50. Bc7 {[%emt 0:00:33]} Rb7 {[%emt 0:00:18]} 51. Be5 {[%emt 0:00:02]} Rd7 {[%emt 0:02:05]} 52. Kg3 {[%emt 0:00:16]} Rd8 {[%emt 0:00:01]} 53. Kxg4 {[%emt 0:00:58]} Rc8 {[%emt 0:00:17]} 54. Bxf6 {[%emt 0:00:49]} exf6 {[%emt 0:00:01]} 55. Rc5 {[%emt 0:00:01]} Rh8 {[%emt 0:00:31]} 56. Rc6+ {[%emt 0:00:15]} Ke7 {[%emt 0:00:36]} 57. b5 {[%emt 0:00:49]} Rh4+ {[%emt 0:00:21]} 58. Kg3 {[%emt 0:00:08]} Rh1 {[%emt 0:00:02]} 59. c4 {[%emt 0:00:29]} f5 {[%emt 0:00:05]} 60. b6 {[%emt 0:00:30]} Rb1 {[%emt 0:00:02]} 61. c5 {[%emt 0:00:44]} Rb3+ {[%emt 0:00:01]} 62. Kg2 {[%emt 0:00:10]} g4 {[%emt 0:00:01]} 63. Rc7+ {[%emt 0:00:18]} Ke6 {[%emt 0:00:53]} 64. b7 {[%emt 0:00:16]} f4 {[%emt 0:00:01]} 65. Rc6+ {[%emt 0:00:13]} Kd7 {[%emt 0:00:37]} 66. Rb6 {[%emt 0:00:10]} 1-0

[Event "15th Chennai GM Open 2025"]
[Site "Chennai"]
[Date "2025.01.06"]
[Round "7.11"]
[White "Aditya Varun Gampa"]
[Black "Mayank Chakraborty"]
[Result "0-1"]
[ECO "C07"]
[WhiteElo "2180"]
[BlackElo "2457"]
[Annotator "TA"]
[PlyCount "54"]
[EventDate "2025.01.02"]
[EventType "swiss"]
[EventCountry "IND"]
[SourceTitle "playchess.com"]
[Source "ChessBase"]
[SourceQuality "1"]
[TimeControl "5400+30"]

{[%evp 14,54,3,9,29,20,20,-14,0,-61,-42,-62,37,30,29,-164,-153,-164,-204,-161,-163,-180,-77,-96,-34,-37,-45,-18,-11,-10,0,-62,-56,-73,-53,-604,-599,-577,-593,-1084,-1043,-1320,-1301]} 1. e4 {[%emt 0:07:43]} e6 {[%emt 0:00:01]} 2. d4 {[%emt 0:01:02]} d5 {[%emt 0:00:02]} 3. Nd2 {[%emt 0:00:07]} c5 {[%emt 0:00:09]} 4. Ngf3 {[%emt 0:00:03]} cxd4 {[%emt 0:00:07]} 5. Nxd4 {[%emt 0:00:08]} Nc6 {[%emt 0:00:43]} 6. Bb5 {[%emt 0:00:22]} Bd7 {[%emt 0:00:01]} 7. Nxc6 {[%emt 0:00:09]} bxc6 {[%emt 0:00:01]} 8. Bd3 {[%emt 0:00:01]} Bd6 {[%emt 0:00:01]} 9. Qe2 {[%emt 0:04:24]} Qc7 {[%emt 0:00:02]} 10. c4 {[%emt 0:01:15]} Nf6 {[%emt 0:06:43]} 11. Nf3 {[%emt 0:07:00]} (11. g3 $11) 11... e5 {[%emt 0:03:37]} 12. exd5 {[%emt 0:04:48]} e4 {[%emt 0:08:03]} (12... O-O $1 $15 13. dxc6 Qxc6) 13. Bxe4 $14 {[%emt 0:03:03]} O-O {[%emt 0:01:01]} 14. Bd3 $2 {[%emt 0:00:20]} (14. dxc6 $1 $11 Bg4 15. Bc2) 14... Rfe8 $19 {[%emt 0:02:33]} 15. Be3 {[%emt 0:00:07]} Bb4+ {[%emt 0:00:47]} 16. Kf1 {[%emt 0:00:27]} cxd5 {[%emt 0:08:07]} 17. cxd5 {[%emt 0:17:48]} Qd6 {[%emt 0:16:35]} (17... Nxd5 $19 {[%cal Oe8e3] and ...Rxe3! would now be decisive} 18. Bxh7+ Kf8 (18... Kxh7 19. Qd3+ Kg8 20. Qxd5 $15)) 18. Rd1 $17 {[%emt 0:02:59] [#]} Ng4 {[%emt 0:08:34] Black is more active.} (18... Rac8 $1 $17 19. Ba6 Rc7) 19. h3 $1 $15 {[%emt 0:01:57]} Nxe3+ {[%emt 0:00:17]} 20. fxe3 {[%emt 0:00:03]} f5 {[%emt 0:00:21][%cal Ob4c5]} (20... Qxd5 $2 21. Bxh7+ Kxh7 22. Rxd5 $18) (20... Qh6 $5 21. e4 $8 Rac8 $16) 21. Nd4 {[%emt 0:16:57]} Kh8 {[%emt 0:11:26]} (21... Qxd5 $2 22. Bc4 Be6 23. Nxe6 $18 (23. Bxd5 Bxd5 24. Qb5 Be4 $18)) 22. Bc4 {[%emt 0:03:43]} (22. Bxf5 Rf8 23. e4 Rae8 $19) ({White should try} 22. h4 $11) 22... Re4 $1 $36 {[%emt 0:03:21][%mdl 2048] Black has the initiative.} 23. Ne6 {[%emt 0:06:22] [#]} Bc5 $1 {[%emt 0:11:40] A strong pair of Bishops.} ({Reject} 23... Rxc4 $6 24. Qxc4 Bxe6 25. Rd4 $14) 24. Ng5 $2 {[%emt 0:03:06][%mdl 8192] [#]} (24. Nxc5 $15 Qxc5 25. b3) 24... Rf8 $1 $19 {[%emt 0:00:11]} 25. Nxe4 {[%emt 0:00:28]} fxe4+ {[%emt 0:00:00]} 26. Kg1 {[%emt 0:00:01]} Qg3 {[%emt 0:00:11]} 27. Re1 {[%emt 0:00:10]} Rf3 {[%emt 0:00:36]} 0-1

[Event "15th Chennai GM Open 2025"]
[Site "Chennai"]
[Date "2025.01.06"]
[Round "7.12"]
[White "Mummana, Venkata Ruthvik"]
[Black "Rios Gomez, Cristhian Camilo"]
[Result "1/2-1/2"]
[ECO "B33"]
[WhiteElo "2186"]
[BlackElo "2435"]
[Annotator "TA"]
[PlyCount "63"]
[EventDate "2025.01.02"]
[EventType "swiss"]
[EventCountry "IND"]
[SourceTitle "playchess.com"]
[Source "ChessBase"]
[SourceQuality "1"]
[TimeControl "5400+30"]

{[%evp 20,63,23,0,12,0,6,5,6,0,0,0,20,12,16,13,3,0,28,15,27,13,33,29,35,-14,9,-31,-19,-29,0,-12,-13,-7,0,0,0,0,8,9,7,0,0,0,0,0]} 1. e4 {[%emt 0:05:25]} c5 {[%emt 0:00:30]} 2. Nf3 {[%emt 0:00:26][%cal Bg1f3,Bf3d4,Bd4b5,Bb5a3,Ba3c2][%mdl 32]} Nc6 {[%emt 0:00:23]} 3. d4 {[%emt 0:00:16]} cxd4 {[%emt 0:00:10]} 4. Nxd4 {[%emt 0:00:39]} Nf6 {[%emt 0:00:56]} 5. Nc3 {[%emt 0:00:22]} e5 {[%emt 0:00:18]} 6. Ndb5 {[%emt 0:00:48]} d6 {[%emt 0:00:12]} 7. Bg5 {[%emt 0:00:53]} a6 {[%emt 0:00:40]} 8. Na3 {[%emt 0:00:28]} b5 {[%emt 0:00:46][%cal Bb7b5,Bb5b4][%mdl 32]} 9. Nd5 {[%emt 0:00:58]} Be7 {[%emt 0:00:42]} 10. Bxf6 {[%emt 0:00:18]} Bxf6 {[%emt 0:00:13]} 11. c4 {[%emt 0:01:12]} b4 {[%emt 0:01:24]} 12. Nc2 {[%emt 0:00:24]} O-O {[%emt 0:00:28]} 13. g3 {[%emt 0:01:06]} a5 {[%emt 0:00:35]} 14. b3 {[%emt 0:01:38]} Be6 {[%emt 0:03:28]} 15. Bg2 {[%emt 0:04:48]} Bg5 {[%emt 0:01:31]} 16. O-O {[%emt 0:04:06]} Qb8 {[%emt 0:01:01]} 17. Qd3 {[%emt 0:20:14]} Bd8 {[%emt 0:00:56]} 18. Kh1 {[%emt 0:09:03]} Ra7 {[%emt 0:11:18]} 19. f4 {[%emt 0:06:37]} f6 {[%emt 0:00:41]} 20. Rad1 {[%emt 0:04:59]} Rd7 {[%emt 0:02:12]} 21. Qe2 {[%emt 0:13:10]} Bb6 {[%emt 0:01:40]} 22. Bf3 {[%emt 0:03:49]} (22. Nxb6 $14 Qxb6 23. f5) 22... Bxd5 {[%emt 0:10:51]} (22... Bc5 {seems wilder.} 23. Bg4 Bxg4 24. Qxg4 Ra7) 23. Rxd5 {[%emt 0:00:33]} Bc5 {[%emt 0:00:28]} 24. Qd1 {[%emt 0:03:29]} Qb6 {[%emt 0:03:34]} 25. fxe5 {[%emt 0:01:12]} Nxe5 {[%emt 0:05:02]} 26. Nd4 {[%emt 0:04:00]} Bxd4 {[%emt 0:00:35]} 27. Rxd4 {[%emt 0:01:20]} Rc8 {[%emt 0:01:58]} 28. Bg2 {[%emt 0:01:14] aiming for Bh3.} Rc5 {[%emt 0:01:23]} 29. Bh3 {[%emt 0:02:04]} Rd8 {[%emt 0:00:06]} 30. Rf2 {[%emt 0:00:19]} Kf7 {[%emt 0:07:56]} 31. Rfd2 {[%emt 0:01:21]} Ke7 {[%emt 0:00:08]} 32. Qh5 {[%emt 0:03:02]} 1/2-1/2

[Event "15th Chennai GM Open 2025"]
[Site "Chennai"]
[Date "2025.01.06"]
[Round "7.13"]
[White "Sanket Chakravarty"]
[Black "Shirliyev, Allayar"]
[Result "1-0"]
[ECO "A11"]
[WhiteElo "2374"]
[BlackElo "2196"]
[Annotator "TA"]
[PlyCount "103"]
[EventDate "2025.01.02"]
[EventType "swiss"]
[EventCountry "IND"]
[SourceTitle "playchess.com"]
[Source "ChessBase"]
[SourceQuality "1"]
[TimeControl "5400+30"]

{[%evp 10,103,25,23,42,0,67,12,10,16,10,-20,-34,-20,-18,-58,-12,-20,0,0,0,0,0,0,0,0,57,45,46,39,60,58,62,62,60,49,82,82,90,64,64,64,108,119,205,149,151,181,167,171,155,99,112,106,147,86,181,122,199,199,214,199,4196,3665,4757,4477,5069,2154,3233,4375,2662,741,5442,4960,5639,5413,2037,1913,29984,29985,29985,29986,29986,29987,29987,29987,29987,29982,29982,29983,29983,29979,29981,29977,29977,29976]} 1. c4 {[%emt 0:06:10]} Nf6 {[%emt 0:00:17]} 2. g3 {[%emt 0:00:49]} c6 {[%emt 0:00:52]} 3. Nf3 {[%emt 0:00:25]} d5 {[%emt 0:00:05]} 4. Bg2 {[%emt 0:00:17]} Bf5 {[%emt 0:01:20]} 5. Qb3 {[%emt 0:01:08]} Qb6 {[%emt 0:00:40]} 6. d3 {[%emt 0:00:09]} Nbd7 {[%emt 0:02:25]} 7. cxd5 {[%emt 0:06:30]} cxd5 {[%emt 0:02:27]} (7... Qxb3 $11 8. axb3 Nxd5) 8. Be3 {[%emt 0:00:22]} (8. Qxb6 $14 Nxb6 9. Nc3) 8... Qxb3 $11 {[%emt 0:00:56]} 9. axb3 {[%emt 0:00:17]} e5 {[%emt 0:00:04] Dodges Nd4} 10. Rxa7 {[%emt 0:10:40]} Rxa7 {[%emt 0:04:00]} 11. Bxa7 {[%emt 0:05:14]} Bb4+ {[%emt 0:00:19]} 12. Nfd2 {[%emt 0:05:46]} O-O {[%emt 0:08:32]} (12... Ke7 $15 13. f4 Ra8 14. fxe5 Rxa7 (14... Nxe5 15. Bd4 $14) 15. exf6+ Nxf6) 13. f4 $1 {[%emt 0:00:33]} e4 {[%emt 0:14:17]} 14. dxe4 $1 {[%emt 0:09:31]} Nxe4 {[%emt 0:00:09]} 15. Bd4 {[%emt 0:00:36]} Nxd2 {[%emt 0:09:28]} 16. Nxd2 {[%emt 0:00:10][%cal Od4c3]} Ra8 {[%emt 0:00:05] ...Ra1+ would now be deadly.} 17. e3 {[%emt 0:17:36][%cal Oe1e2]} Bg4 {[%emt 0:02:33]} (17... Rc8 $11 18. Bxd5 Rc1+ 19. Ke2 Bg4+ (19... Rc2 20. Bc3 $11) 20. Kd3 Bf5+ 21. Ke2) 18. h3 $1 $14 {[%emt 0:02:04]} Ra1+ {[%emt 0:00:20]} 19. Kf2 {[%emt 0:00:03]} Rxh1 {[%emt 0:00:24]} 20. Bxh1 {[%emt 0:00:23]} Bxh3 {[%emt 0:00:05]} 21. Nb1 {[%emt 0:03:43]} Be6 {[%emt 0:24:41]} 22. Nc3 {[%emt 0:00:09]} Bxc3 {[%emt 0:02:58]} 23. bxc3 {[%emt 0:00:09][%mdl 4096] Endgame KBB-KBN} (23. Bxc3 $6 Nc5 $11) 23... f5 {[%emt 0:00:44]} 24. Ke2 {[%emt 0:00:44]} Kf7 {[%emt 0:01:27]} 25. Kd3 {[%emt 0:00:06] White is more active.} b5 {[%emt 0:00:26]} 26. Bf3 {[%emt 0:04:45]} Ke7 {[%emt 0:02:42]} (26... Nb8 $16) 27. Be2 {[%emt 0:05:18][%cal Od3d2]} (27. Bxg7 Nc5+ 28. Kc2 Ne4 $14) 27... Kd6 {[%emt 0:01:42]} 28. Bxg7 {[%emt 0:08:13]} Nc5+ {[%emt 0:00:06]} 29. Kc2 {[%emt 0:00:08] And now Bf8+ would win.} Kc6 {[%emt 0:04:30]} 30. Bf6 {[%emt 0:00:26]} (30. Bh5 $142 $1) 30... Ne4 {[%emt 0:01:42][%csl LRf6,LRg3]} 31. Bh4 {[%emt 0:00:06]} Bd7 {[%emt 0:00:03]} 32. b4 {[%emt 0:05:46]} ({White should play} 32. Bh5) 32... Kd6 {[%emt 0:04:55] [#]} (32... Be8 $16) 33. Kd3 {[%emt 0:00:06]} (33. Bh5 $1 $18) 33... Be8 {[%emt 0:00:05] [#]} (33... Nf2+ $16 34. Kd4 Be8) 34. g4 $1 $18 {[%emt 0:01:21]} Bd7 {[%emt 0:02:51]} 35. Bf3 {[%emt 0:02:20]} fxg4 $2 {[%emt 0:04:13]} (35... Be6 36. Be1 Nf6 (36... fxg4 $2 37. Bxe4 dxe4+ 38. Kxe4 $18)) 36. Bxe4 {[%emt 0:00:05]} dxe4+ {[%emt 0:00:09]} 37. Kxe4 {[%emt 0:00:04] KB-KB. White is a pawn up.} Be6 {[%emt 0:00:08]} 38. f5 {[%emt 0:00:22]} (38. Bg3 $142 Bd5+ 39. Kd4) 38... Bc4 {[%emt 0:00:05]} 39. Kd4 {[%emt 0:01:08]} Bb3 {[%emt 0:01:37]} 40. e4 {[%emt 0:00:26]} (40. Bg3+ $142 Ke7 41. Ke5) 40... Bc2 {[%emt 0:00:07]} 41. Ke3 {[%emt 0:00:34]} h6 {[%emt 0:03:02]} 42. Kf4 {[%emt 0:00:08]} Kc6 {[%emt 0:00:26]} 43. e5 {[%emt 0:00:22][%cal Be4e5,Be5e6][%mdl 32] Threatening mate with e6!.} (43. Kxg4 Bxe4 44. Kf4 Bc2 $14) 43... Kd5 {[%emt 0:00:55]} 44. e6 {[%emt 0:00:06]} ({Worse is} 44. Kxg4 Kxe5 45. Bg3+ Kf6 $11) 44... Kd6 {[%emt 0:00:04]} 45. Bf2 {[%emt 0:00:16]} ({Weaker is} 45. Kxg4 Ke5 $18) 45... Ke7 {[%emt 0:02:19]} 46. Ke5 {[%emt 0:00:14]} Ke8 {[%emt 0:01:12]} 47. f6 {[%emt 0:00:07]} Bg6 {[%emt 0:00:17]} 48. f7+ {[%emt 0:00:04]} Bxf7 {[%emt 0:00:05]} 49. exf7+ {[%emt 0:00:02]} Kxf7 {[%emt 0:00:05]} 50. Kf5 {[%emt 0:00:03]} h5 {[%emt 0:00:26]} 51. Kg5 {[%emt 0:00:02]} Ke6 {[%emt 0:00:05]} 52. Kxh5 {[%emt 0:00:12]} 1-0